[Event "Titled Tuesday Blitz February 21 Late 2023"]
[White "Thomforde-Toates, Noah"]
[Black "Urazayev, Arystanbek"]
[WhiteFideId "30951992"]
[BlackFideId "13709810"]
[WhiteElo "2124"]
[BlackElo "2460"]
[Result "1-0"]
[Round "05"]
[TimeControl "180+2"]
[Date "2023.02.21"]
[WhiteClock "0:00:15"]
[BlackClock "0:00:03"]

1. e4 {[%clk 0:03:00]}  c6 {[%clk 0:03:00]} 2. d4 {[%clk 0:02:53]}  d5 {[%clk 0:03:00]} 3. e5 {[%clk 0:02:53]}  c5 {[%clk 0:02:59]} 4. dxc5 {[%clk 0:02:52]}  e6 {[%clk 0:03:00]} 5. a3 {[%clk 0:02:51]}  Bxc5 {[%clk 0:02:59]} 6. b4 {[%clk 0:02:51]}  Be7 {[%clk 0:02:58]} 7. Bb2 {[%clk 0:02:50]}  Nh6 {[%clk 0:02:57]} 8. Nf3 {[%clk 0:02:50]}  O-O {[%clk 0:02:56]} 9. Bd3 {[%clk 0:02:50]}  a5 {[%clk 0:02:57]} 10. b5 {[%clk 0:02:48]}  Nd7 {[%clk 0:02:56]} 11. a4 {[%clk 0:02:39]}  f6 {[%clk 0:02:55]} 12. O-O {[%clk 0:02:38]}  Nf7 {[%clk 0:02:55]} 13. exf6 {[%clk 0:02:12]}  Bxf6 {[%clk 0:02:56]} 14. Bxf6 {[%clk 0:02:04]}  Qxf6 {[%clk 0:02:57]} 15. Nbd2 {[%clk 0:02:04]}  e5 {[%clk 0:02:57]} 16. Re1 {[%clk 0:01:58]}  e4 {[%clk 0:02:56]} 17. Bxe4 {[%clk 0:01:57]}  dxe4 {[%clk 0:02:57]} 18. Nxe4 {[%clk 0:01:58]}  Qf4 {[%clk 0:02:51]} 19. Qd5 {[%clk 0:01:54]}  Nf6 {[%clk 0:02:45]} 20. Nxf6+ {[%clk 0:01:49]}  Qxf6 {[%clk 0:02:45]} 21. Rad1 {[%clk 0:01:48]}  Bg4 {[%clk 0:02:44]} 22. Rd3 {[%clk 0:01:43]}  Rad8 {[%clk 0:02:24]} 23. Qxb7 {[%clk 0:01:42]}  Rxd3 {[%clk 0:02:24]} 24. cxd3 {[%clk 0:01:42]}  Qc3 {[%clk 0:01:55]} 25. Re7 {[%clk 0:01:16]}  Bxf3 {[%clk 0:01:44]} 26. gxf3 {[%clk 0:01:17]}  Qxd3 {[%clk 0:01:24]} 27. Qe4 {[%clk 0:01:14]}  Qd1+ {[%clk 0:01:18]} 28. Kg2 {[%clk 0:01:14]}  Ng5 {[%clk 0:01:15]} 29. Qc4+ {[%clk 0:01:11]}  Kh8 {[%clk 0:01:12]} 30. Qf4 {[%clk 0:01:09]}  Qg1+ {[%clk 0:00:36]} 31. Kxg1 {[%clk 0:01:08]}  Nh3+ {[%clk 0:00:36]} 32. Kg2 {[%clk 0:01:02]}  Nxf4+ {[%clk 0:00:36]} 33. Kg3 {[%clk 0:01:02]}  Nd5 {[%clk 0:00:31]} 34. Ra7 {[%clk 0:01:02]}  g5 {[%clk 0:00:22]} 35. Rxa5 {[%clk 0:01:00]}  Rf4 {[%clk 0:00:20]} 36. Ra7 {[%clk 0:00:39]}  Rb4 {[%clk 0:00:19]} 37. Rd7 {[%clk 0:00:33]}  Nc3 {[%clk 0:00:19]} 38. a5 {[%clk 0:00:20]}  Rxb5 {[%clk 0:00:13]} 39. a6 {[%clk 0:00:20]}  Ne2+ {[%clk 0:00:11]} 40. Kg4 {[%clk 0:00:19]}  Rb4+ {[%clk 0:00:08]} 41. Kxg5 {[%clk 0:00:17]}  Rb5+ {[%clk 0:00:08]} 42. Kf6 {[%clk 0:00:16]}  Rb6+ {[%clk 0:00:09]} 43. Kf7 {[%clk 0:00:16]}  Rb8 {[%clk 0:00:02]} 44. a7 {[%clk 0:00:16]}  Rg8 {[%clk 0:00:02]} 45. Rb7 {[%clk 0:00:15]}  Rg7+ {[%clk 0:00:03]} 46. Kf6 {[%clk 0:00:15]} 1-0


[Site "https://www.chess.com"]

[Event "Titled Tuesday Blitz February 21 Late 2023"]
[White "Mekhitarian, Krikor Sevag"]
[Black "Ozates, Tuna"]
[WhiteFideId "2107660"]
[BlackFideId "6354521"]
[WhiteElo "2537"]
[BlackElo "2251"]
[Result "0-1"]
[Round "05"]
[TimeControl "180+2"]
[Date "2023.02.21"]
[WhiteClock "0:00:03"]
[BlackClock "0:00:03"]

1. Nf3 {[%clk 0:03:00]}  c5 {[%clk 0:03:00]} 2. c4 {[%clk 0:03:00]}  Nc6 {[%clk 0:03:00]} 3. Nc3 {[%clk 0:02:56]}  Nd4 {[%clk 0:02:59]} 4. e3 {[%clk 0:02:42]}  Nxf3+ {[%clk 0:03:00]} 5. Qxf3 {[%clk 0:02:43]}  g6 {[%clk 0:03:00]} 6. b3 {[%clk 0:02:42]}  Bg7 {[%clk 0:03:00]} 7. Bb2 {[%clk 0:02:43]}  Nh6 {[%clk 0:03:01]} 8. O-O-O {[%clk 0:02:34]}  O-O {[%clk 0:03:00]} 9. h3 {[%clk 0:02:31]}  d6 {[%clk 0:02:58]} 10. Bd3 {[%clk 0:02:31]}  a6 {[%clk 0:02:55]} 11. g4 {[%clk 0:02:26]}  Rb8 {[%clk 0:02:53]} 12. Rhg1 {[%clk 0:02:17]}  f5 {[%clk 0:02:44]} 13. gxf5 {[%clk 0:02:06]}  Nxf5 {[%clk 0:02:40]} 14. h4 {[%clk 0:01:59]}  b5 {[%clk 0:02:22]} 15. h5 {[%clk 0:01:55]}  Nd4 {[%clk 0:01:21]} 16. Qg3 {[%clk 0:01:16]}  Bf5 {[%clk 0:01:20]} 17. Bxf5 {[%clk 0:01:13]}  Nxf5 {[%clk 0:01:20]} 18. Qf3 {[%clk 0:01:10]}  bxc4 {[%clk 0:01:02]} 19. hxg6 {[%clk 0:00:33]}  h6 {[%clk 0:00:58]} 20. Qd5+ {[%clk 0:00:32]}  Kh8 {[%clk 0:00:57]} 21. Qxc4 {[%clk 0:00:32]}  Rb4 {[%clk 0:00:42]} 22. Qxa6 {[%clk 0:00:27]}  c4 {[%clk 0:00:41]} 23. Nd5 {[%clk 0:00:25]}  e5 {[%clk 0:00:41]} 24. Nxb4 {[%clk 0:00:22]}  cxb3 {[%clk 0:00:38]} 25. axb3 {[%clk 0:00:22]}  Qb8 {[%clk 0:00:36]} 26. Bc3 {[%clk 0:00:19]}  d5 {[%clk 0:00:32]} 27. Nc6 {[%clk 0:00:05]}  Qxb3 {[%clk 0:00:33]} 28. Qa1 {[%clk 0:00:05]}  d4 {[%clk 0:00:30]} 29. Na5 {[%clk 0:00:06]}  Qb5 {[%clk 0:00:22]} 30. Qb1 {[%clk 0:00:06]}  Qa6 {[%clk 0:00:15]} 31. Qb4 {[%clk 0:00:03]}  dxc3 {[%clk 0:00:10]} 32. dxc3 {[%clk 0:00:04]}  Rc8 {[%clk 0:00:09]} 33. Kb2 {[%clk 0:00:04]}  e4 {[%clk 0:00:09]} 34. Rd4 {[%clk 0:00:04]}  Nxd4 {[%clk 0:00:09]} 35. exd4 {[%clk 0:00:05]}  Qe2+ {[%clk 0:00:09]} 36. Kb3 {[%clk 0:00:05]}  Qxf2 {[%clk 0:00:10]} 37. Rb1 {[%clk 0:00:05]}  e3 {[%clk 0:00:10]} 38. Qb7 {[%clk 0:00:05]}  Qf5 {[%clk 0:00:09]} 39. Rf1 {[%clk 0:00:03]}  Qe6+ {[%clk 0:00:08]} 40. c4 {[%clk 0:00:03]}  e2 {[%clk 0:00:07]} 41. Re1 {[%clk 0:00:03]}  Qe3+ {[%clk 0:00:07]} 42. Ka4 {[%clk 0:00:04]}  Re8 {[%clk 0:00:06]} 43. Nc6 {[%clk 0:00:04]}  Qd2 {[%clk 0:00:05]} 44. Qf7 {[%clk 0:00:05]}  Ra8+ {[%clk 0:00:04]} 45. Kb5 {[%clk 0:00:06]}  Qxe1 {[%clk 0:00:04]} 46. Ne7 {[%clk 0:00:01]}  Qb1+ {[%clk 0:00:05]} 47. Kc6 {[%clk 0:00:02]}  e1=Q {[%clk 0:00:04]} 48. Nf5 {[%clk 0:00:03]}  Ra6+ {[%clk 0:00:03]} 49. Kd5 {[%clk 0:00:03]}  Qee4+ {[%clk 0:00:03]} 50. Kc5 {[%clk 0:00:03]}  Qb6# {[%clk 0:00:03]} 0-1


[Site "https://www.chess.com"]

[Event "Titled Tuesday Blitz February 21 Late 2023"]
[White "Mikhalsky, Vladimir"]
[Black "Christiansen, Johan-Sebastian"]
[WhiteFideId "14144352"]
[BlackFideId "1512668"]
[WhiteElo "2219"]
[BlackElo "2579"]
[Result "0-1"]
[Round "05"]
[TimeControl "180+2"]
[Date "2023.02.21"]
[WhiteClock "0:00:01"]
[BlackClock "0:00:37"]

1. d4 {[%clk 0:02:55]}  Nf6 {[%clk 0:02:59]} 2. c4 {[%clk 0:02:55]}  c5 {[%clk 0:02:56]} 3. Nf3 {[%clk 0:02:53]}  cxd4 {[%clk 0:02:57]} 4. Nxd4 {[%clk 0:02:53]}  e5 {[%clk 0:02:57]} 5. Nb5 {[%clk 0:02:54]}  d5 {[%clk 0:02:58]} 6. cxd5 {[%clk 0:02:54]}  Bb4+ {[%clk 0:02:58]} 7. Bd2 {[%clk 0:02:48]}  Bc5 {[%clk 0:02:58]} 8. N1c3 {[%clk 0:02:20]}  O-O {[%clk 0:02:44]} 9. Qb3 {[%clk 0:01:49]}  a6 {[%clk 0:02:42]} 10. Na3 {[%clk 0:01:49]}  b5 {[%clk 0:02:42]} 11. Nc2 {[%clk 0:01:44]}  Bb7 {[%clk 0:02:39]} 12. e4 {[%clk 0:01:31]}  Ng4 {[%clk 0:02:35]} 13. Ne3 {[%clk 0:01:19]}  Nxe3 {[%clk 0:02:25]} 14. Bxe3 {[%clk 0:01:19]}  Bxe3 {[%clk 0:02:25]} 15. fxe3 {[%clk 0:01:19]}  Qg5 {[%clk 0:02:24]} 16. Ne2 {[%clk 0:01:13]}  Nd7 {[%clk 0:02:24]} 17. Ng3 {[%clk 0:01:00]}  Nc5 {[%clk 0:02:21]} 18. Qc3 {[%clk 0:00:55]}  Rac8 {[%clk 0:02:21]} 19. Qd2 {[%clk 0:00:54]}  Rfd8 {[%clk 0:02:16]} 20. Bd3 {[%clk 0:00:44]}  Qf6 {[%clk 0:01:18]} 21. Rd1 {[%clk 0:00:31]}  g6 {[%clk 0:01:12]} 22. Rf1 {[%clk 0:00:25]}  Qh4 {[%clk 0:01:12]} 23. Kf2 {[%clk 0:00:20]}  Bxd5 {[%clk 0:01:04]} 24. exd5 {[%clk 0:00:16]}  Rxd5 {[%clk 0:01:05]} 25. Kg1 {[%clk 0:00:13]}  Rxd3 {[%clk 0:01:02]} 26. Qf2 {[%clk 0:00:12]}  Qe7 {[%clk 0:00:59]} 27. e4 {[%clk 0:00:05]}  Rxd1 {[%clk 0:00:56]} 28. Rxd1 {[%clk 0:00:06]}  Ne6 {[%clk 0:00:56]} 29. Qb6 {[%clk 0:00:04]}  Nd4 {[%clk 0:00:55]} 30. Qxa6 {[%clk 0:00:04]}  Qc5 {[%clk 0:00:55]} 31. Kh1 {[%clk 0:00:04]}  h5 {[%clk 0:00:50]} 32. Qf6 {[%clk 0:00:01]}  Rc6 {[%clk 0:00:37]} 0-1


[Site "https://www.chess.com"]

[Event "Titled Tuesday Blitz February 21 Late 2023"]
[White "Kramnik, Vladimir"]
[Black "Fernandez Siles, Luis"]
[WhiteFideId "4101588"]
[BlackFideId "2209420"]
[WhiteElo "2753"]
[BlackElo "2218"]
[Result "1-0"]
[Round "05"]
[TimeControl "180+2"]
[Date "2023.02.21"]
[WhiteClock "0:01:17"]
[BlackClock "0:00:03"]

1. c4 {[%clk 0:03:00]}  Nf6 {[%clk 0:02:56]} 2. Nc3 {[%clk 0:02:59]}  g6 {[%clk 0:02:56]} 3. g3 {[%clk 0:02:58]}  Bg7 {[%clk 0:02:55]} 4. Bg2 {[%clk 0:02:58]}  O-O {[%clk 0:02:55]} 5. d3 {[%clk 0:02:58]}  d6 {[%clk 0:02:50]} 6. Nf3 {[%clk 0:02:57]}  c5 {[%clk 0:02:48]} 7. O-O {[%clk 0:02:55]}  Nc6 {[%clk 0:02:48]} 8. a3 {[%clk 0:02:54]}  Rb8 {[%clk 0:02:41]} 9. Bg5 {[%clk 0:02:53]}  b6 {[%clk 0:02:40]} 10. Qd2 {[%clk 0:02:51]}  Bb7 {[%clk 0:02:40]} 11. b4 {[%clk 0:02:43]}  Nd4 {[%clk 0:02:37]} 12. Nxd4 {[%clk 0:02:42]}  Bxg2 {[%clk 0:02:34]} 13. Kxg2 {[%clk 0:02:41]}  cxd4 {[%clk 0:02:35]} 14. Nb5 {[%clk 0:02:36]}  Qd7 {[%clk 0:02:12]} 15. Nxd4 {[%clk 0:02:28]}  Ng4 {[%clk 0:02:08]} 16. Be3 {[%clk 0:02:25]}  f5 {[%clk 0:01:58]} 17. Rac1 {[%clk 0:02:11]}  e5 {[%clk 0:01:46]} 18. Nf3 {[%clk 0:02:10]}  Rbe8 {[%clk 0:01:33]} 19. h3 {[%clk 0:02:03]}  Nxe3+ {[%clk 0:01:27]} 20. Qxe3 {[%clk 0:02:00]}  e4 {[%clk 0:01:27]} 21. dxe4 {[%clk 0:01:58]}  Rxe4 {[%clk 0:01:27]} 22. Qd3 {[%clk 0:01:57]}  Rfe8 {[%clk 0:01:21]} 23. e3 {[%clk 0:01:52]}  Qc6 {[%clk 0:01:06]} 24. Rc2 {[%clk 0:01:48]}  g5 {[%clk 0:00:54]} 25. Qd5+ {[%clk 0:01:45]}  Qxd5 {[%clk 0:00:51]} 26. cxd5 {[%clk 0:01:45]}  g4 {[%clk 0:00:45]} 27. hxg4 {[%clk 0:01:43]}  fxg4 {[%clk 0:00:46]} 28. Ng5 {[%clk 0:01:41]}  R4e5 {[%clk 0:00:44]} 29. Ne6 {[%clk 0:01:41]}  Rxd5 {[%clk 0:00:40]} 30. Nxg7 {[%clk 0:01:38]}  Kxg7 {[%clk 0:00:40]} 31. Rc7+ {[%clk 0:01:38]}  Kg6 {[%clk 0:00:38]} 32. Rxa7 {[%clk 0:01:38]}  Rd2 {[%clk 0:00:31]} 33. Kg1 {[%clk 0:01:27]}  h5 {[%clk 0:00:25]} 34. Rc1 {[%clk 0:01:21]}  Rf8 {[%clk 0:00:23]} 35. Rcc7 {[%clk 0:01:19]}  Rfxf2 {[%clk 0:00:04]} 36. Rg7+ {[%clk 0:01:19]}  Kh6 {[%clk 0:00:05]} 37. Rh7+ {[%clk 0:01:19]}  Kg6 {[%clk 0:00:05]} 38. Rag7+ {[%clk 0:01:18]}  Kf6 {[%clk 0:00:05]} 39. Rf7+ {[%clk 0:01:18]}  Kg6 {[%clk 0:00:06]} 40. Rxf2 {[%clk 0:01:18]}  Rd1+ {[%clk 0:00:05]} 41. Rf1 {[%clk 0:01:17]}  Rxf1+ {[%clk 0:00:05]} 42. Kxf1 {[%clk 0:01:17]}  Kxh7 {[%clk 0:00:06]} 43. a4 {[%clk 0:01:18]}  Kg6 {[%clk 0:00:03]} 44. a5 {[%clk 0:01:17]}  bxa5 {[%clk 0:00:03]} 45. bxa5 {[%clk 0:01:17]}  Kf5 {[%clk 0:00:04]} 46. a6 {[%clk 0:01:17]}  Ke4 {[%clk 0:00:03]} 47. a7 {[%clk 0:01:17]} 1-0


[Site "https://www.chess.com"]

[Event "Titled Tuesday Blitz February 21 Late 2023"]
[White "Perez Ponsa, Federico"]
[Black "Ehlvest, Jaan"]
[WhiteFideId "117927"]
[BlackFideId "4500016"]
[WhiteElo "2532"]
[BlackElo "2530"]
[Result "1-0"]
[Round "05"]
[TimeControl "180+2"]
[Date "2023.02.21"]
[WhiteClock "0:00:15"]
[BlackClock "0:00:11"]

1. e4 {[%clk 0:03:00]}  c5 {[%clk 0:02:58]} 2. Nf3 {[%clk 0:02:16]}  Nc6 {[%clk 0:02:57]} 3. d4 {[%clk 0:02:16]}  cxd4 {[%clk 0:02:57]} 4. Nxd4 {[%clk 0:02:17]}  Nf6 {[%clk 0:02:56]} 5. Nc3 {[%clk 0:02:18]}  e5 {[%clk 0:02:56]} 6. Ndb5 {[%clk 0:02:19]}  d6 {[%clk 0:02:57]} 7. Bg5 {[%clk 0:02:19]}  a6 {[%clk 0:02:56]} 8. Na3 {[%clk 0:02:20]}  b5 {[%clk 0:02:56]} 9. Nd5 {[%clk 0:02:21]}  Be7 {[%clk 0:02:55]} 10. Bxf6 {[%clk 0:02:22]}  Bxf6 {[%clk 0:02:54]} 11. c3 {[%clk 0:02:22]}  Rb8 {[%clk 0:02:52]} 12. Nc2 {[%clk 0:02:21]}  Bg5 {[%clk 0:02:52]} 13. Be2 {[%clk 0:02:15]}  O-O {[%clk 0:02:43]} 14. O-O {[%clk 0:02:16]}  Be6 {[%clk 0:02:40]} 15. Qd3 {[%clk 0:02:11]}  a5 {[%clk 0:02:34]} 16. Na3 {[%clk 0:02:05]}  b4 {[%clk 0:02:12]} 17. Nb5 {[%clk 0:02:02]}  Kh8 {[%clk 0:01:56]} 18. Rad1 {[%clk 0:01:43]}  f5 {[%clk 0:01:53]} 19. exf5 {[%clk 0:01:30]}  Bxf5 {[%clk 0:01:50]} 20. Qc4 {[%clk 0:01:31]}  Rc8 {[%clk 0:01:40]} 21. Qb3 {[%clk 0:00:59]}  Be6 {[%clk 0:01:22]} 22. c4 {[%clk 0:00:52]}  e4 {[%clk 0:01:01]} 23. Qg3 {[%clk 0:00:36]}  Ne5 {[%clk 0:00:51]} 24. b3 {[%clk 0:00:31]}  Bxd5 {[%clk 0:00:32]} 25. Rxd5 {[%clk 0:00:29]}  Bf4 {[%clk 0:00:32]} 26. Qh3 {[%clk 0:00:27]}  Qg5 {[%clk 0:00:29]} 27. Nxd6 {[%clk 0:00:24]}  Rcd8 {[%clk 0:00:16]} 28. Nxe4 {[%clk 0:00:22]}  Qg6 {[%clk 0:00:16]} 29. Rxd8 {[%clk 0:00:17]}  Rxd8 {[%clk 0:00:16]} 30. Rd1 {[%clk 0:00:16]}  Rxd1+ {[%clk 0:00:13]} 31. Bxd1 {[%clk 0:00:16]}  h6 {[%clk 0:00:12]} 32. Qc8+ {[%clk 0:00:15]}  Kh7 {[%clk 0:00:12]} 33. Bc2 {[%clk 0:00:16]}  Nf3+ {[%clk 0:00:11]} 34. Kh1 {[%clk 0:00:15]} 1-0


[Site "https://www.chess.com"]

[Event "Titled Tuesday Blitz February 21 Late 2023"]
[White "Kobo, Ori"]
[Black "Urbina Perez, Juan Antonio"]
[WhiteFideId "2812320"]
[BlackFideId "2217368"]
[WhiteElo "2559"]
[BlackElo "2266"]
[Result "1-0"]
[Round "05"]
[TimeControl "180+2"]
[Date "2023.02.21"]
[WhiteClock "0:00:17"]
[BlackClock "0:00:27"]

1. e4 {[%clk 0:03:00]}  c5 {[%clk 0:02:49]} 2. Nc3 {[%clk 0:03:00]}  Nc6 {[%clk 0:02:49]} 3. Bb5 {[%clk 0:03:00]}  Nd4 {[%clk 0:02:49]} 4. Nf3 {[%clk 0:03:00]}  a6 {[%clk 0:02:47]} 5. Bd3 {[%clk 0:02:59]}  g6 {[%clk 0:02:43]} 6. O-O {[%clk 0:02:58]}  Bg7 {[%clk 0:02:43]} 7. Re1 {[%clk 0:02:59]}  e6 {[%clk 0:02:41]} 8. e5 {[%clk 0:02:54]}  Nxf3+ {[%clk 0:02:31]} 9. Qxf3 {[%clk 0:02:54]}  d5 {[%clk 0:02:30]} 10. exd6 {[%clk 0:02:52]}  Qxd6 {[%clk 0:02:30]} 11. Ne4 {[%clk 0:02:39]}  Qe7 {[%clk 0:02:29]} 12. Qg3 {[%clk 0:02:33]}  Nf6 {[%clk 0:02:20]} 13. Nd6+ {[%clk 0:02:32]}  Kf8 {[%clk 0:02:21]} 14. Nxc8 {[%clk 0:02:27]}  Rxc8 {[%clk 0:02:22]} 15. Rb1 {[%clk 0:02:15]}  Nd5 {[%clk 0:02:16]} 16. a3 {[%clk 0:02:00]}  Qc7 {[%clk 0:02:16]} 17. Qf3 {[%clk 0:01:52]}  Qf4 {[%clk 0:02:14]} 18. Qe2 {[%clk 0:01:45]}  Qd6 {[%clk 0:02:11]} 19. Be4 {[%clk 0:01:41]}  Bf6 {[%clk 0:02:03]} 20. d3 {[%clk 0:01:34]}  Kg7 {[%clk 0:02:02]} 21. c4 {[%clk 0:01:30]}  Ne7 {[%clk 0:01:52]} 22. b4 {[%clk 0:01:26]}  b6 {[%clk 0:01:39]} 23. Qf3 {[%clk 0:01:18]}  Nf5 {[%clk 0:01:28]} 24. g4 {[%clk 0:01:11]}  Nd4 {[%clk 0:00:37]} 25. Bh6+ {[%clk 0:01:10]}  Kxh6 {[%clk 0:00:37]} 26. Qxf6 {[%clk 0:01:10]}  Qd8 {[%clk 0:00:38]} 27. g5+ {[%clk 0:00:52]}  Kh5 {[%clk 0:00:38]} 28. Bf3+ {[%clk 0:00:50]}  Nxf3+ {[%clk 0:00:38]} 29. Qxf3+ {[%clk 0:00:50]}  Kxg5 {[%clk 0:00:38]} 30. Qxf7 {[%clk 0:00:31]}  Kh6 {[%clk 0:00:38]} 31. Qxe6 {[%clk 0:00:19]}  Qg5+ {[%clk 0:00:38]} 32. Kh1 {[%clk 0:00:20]}  Rce8 {[%clk 0:00:28]} 33. Qh3+ {[%clk 0:00:19]}  Kg7 {[%clk 0:00:27]} 34. Qd7+ {[%clk 0:00:18]}  Kh6 {[%clk 0:00:27]} 35. Rxe8 {[%clk 0:00:17]} 1-0


[Site "https://www.chess.com"]

[Event "Titled Tuesday Blitz February 21 Late 2023"]
[White "Grycel, Kamil"]
[Black "Nasuta, Grzegorz"]
[WhiteFideId "1115499"]
[BlackFideId "1141686"]
[WhiteElo "2315"]
[BlackElo "2552"]
[Result "0-1"]
[Round "05"]
[TimeControl "180+2"]
[Date "2023.02.21"]
[WhiteClock "0:00:36"]
[BlackClock "0:00:17"]

1. b3 {[%clk 0:02:59]}  d5 {[%clk 0:02:59]} 2. Bb2 {[%clk 0:02:59]}  Bf5 {[%clk 0:02:59]} 3. Nf3 {[%clk 0:02:59]}  e6 {[%clk 0:02:59]} 4. g3 {[%clk 0:02:59]}  Nf6 {[%clk 0:02:58]} 5. Bg2 {[%clk 0:02:59]}  h6 {[%clk 0:02:59]} 6. c4 {[%clk 0:03:00]}  c6 {[%clk 0:02:59]} 7. O-O {[%clk 0:02:59]}  Be7 {[%clk 0:02:59]} 8. d3 {[%clk 0:03:00]}  O-O {[%clk 0:03:00]} 9. Nbd2 {[%clk 0:03:00]}  Bh7 {[%clk 0:03:01]} 10. a3 {[%clk 0:03:00]}  a5 {[%clk 0:03:01]} 11. Qc2 {[%clk 0:03:00]}  Re8 {[%clk 0:03:00]} 12. Bc3 {[%clk 0:03:00]}  c5 {[%clk 0:03:00]} 13. cxd5 {[%clk 0:02:42]}  exd5 {[%clk 0:02:59]} 14. e4 {[%clk 0:02:33]}  Nc6 {[%clk 0:02:54]} 15. Rfe1 {[%clk 0:02:31]}  Rc8 {[%clk 0:02:45]} 16. Bh3 {[%clk 0:02:17]}  dxe4 {[%clk 0:02:25]} 17. dxe4 {[%clk 0:02:13]}  Ra8 {[%clk 0:02:12]} 18. Rad1 {[%clk 0:02:12]}  Qc7 {[%clk 0:02:11]} 19. Qb2 {[%clk 0:02:05]}  b5 {[%clk 0:02:08]} 20. Qa1 {[%clk 0:01:17]}  Rad8 {[%clk 0:01:58]} 21. Bf1 {[%clk 0:01:13]}  Qb6 {[%clk 0:01:57]} 22. a4 {[%clk 0:01:12]}  b4 {[%clk 0:01:57]} 23. Bb2 {[%clk 0:01:11]}  Qb7 {[%clk 0:01:12]} 24. e5 {[%clk 0:01:10]}  Nd5 {[%clk 0:01:08]} 25. Bg2 {[%clk 0:01:11]}  Qc7 {[%clk 0:01:00]} 26. e6 {[%clk 0:01:07]}  fxe6 {[%clk 0:00:44]} 27. Bxg7 {[%clk 0:01:05]}  Bf8 {[%clk 0:00:37]} 28. Bb2 {[%clk 0:00:59]}  Bg7 {[%clk 0:00:34]} 29. Ne5 {[%clk 0:00:53]}  Nxe5 {[%clk 0:00:29]} 30. Bxe5 {[%clk 0:00:54]}  Bxe5 {[%clk 0:00:29]} 31. Rxe5 {[%clk 0:00:53]}  Nc3 {[%clk 0:00:30]} 32. Ree1 {[%clk 0:00:49]}  Bc2 {[%clk 0:00:24]} 33. Qc1 {[%clk 0:00:38]}  Bxd1 {[%clk 0:00:23]} 34. Nc4 {[%clk 0:00:38]}  Bxb3 {[%clk 0:00:18]} 35. Ne5 {[%clk 0:00:36]}  Qxe5 {[%clk 0:00:17]} 0-1


[Site "https://www.chess.com"]

[Event "Titled Tuesday Blitz February 21 Late 2023"]
[White "Rottenwohrer Suarez, Juan"]
[Black "Oro, Faustino"]
[WhiteFideId "32068182"]
[BlackFideId "20000197"]
[WhiteElo "2265"]
[BlackElo "2269"]
[Result "0-1"]
[Round "05"]
[TimeControl "180+2"]
[Date "2023.02.21"]
[WhiteClock "0:00:03"]
[BlackClock "0:00:10"]

1. Nf3 {[%clk 0:03:00]}  Nf6 {[%clk 0:02:58]} 2. g3 {[%clk 0:03:01]}  d5 {[%clk 0:02:59]} 3. Bg2 {[%clk 0:03:02]}  c6 {[%clk 0:02:59]} 4. O-O {[%clk 0:03:02]}  Bf5 {[%clk 0:03:00]} 5. c4 {[%clk 0:03:02]}  e6 {[%clk 0:03:00]} 6. cxd5 {[%clk 0:03:02]}  exd5 {[%clk 0:02:59]} 7. Nc3 {[%clk 0:03:03]}  Be7 {[%clk 0:02:58]} 8. d3 {[%clk 0:03:04]}  h6 {[%clk 0:02:57]} 9. e4 {[%clk 0:03:00]}  dxe4 {[%clk 0:02:57]} 10. dxe4 {[%clk 0:02:59]}  Qxd1 {[%clk 0:02:49]} 11. Rxd1 {[%clk 0:03:00]}  Nxe4 {[%clk 0:02:33]} 12. Nxe4 {[%clk 0:02:57]}  Bxe4 {[%clk 0:02:33]} 13. Re1 {[%clk 0:02:57]}  Bxf3 {[%clk 0:02:33]} 14. Bxf3 {[%clk 0:02:58]}  Kf8 {[%clk 0:02:17]} 15. Bf4 {[%clk 0:02:35]}  Nd7 {[%clk 0:02:11]} 16. a3 {[%clk 0:02:19]}  g5 {[%clk 0:01:49]} 17. Bd2 {[%clk 0:02:09]}  Bf6 {[%clk 0:01:44]} 18. Rab1 {[%clk 0:02:07]}  Kg7 {[%clk 0:01:43]} 19. b4 {[%clk 0:02:05]}  Nb6 {[%clk 0:01:37]} 20. b5 {[%clk 0:02:02]}  Rac8 {[%clk 0:01:28]} 21. bxc6 {[%clk 0:02:01]}  bxc6 {[%clk 0:01:29]} 22. Rec1 {[%clk 0:01:58]}  c5 {[%clk 0:01:29]} 23. Ba5 {[%clk 0:01:49]}  c4 {[%clk 0:01:06]} 24. Bxb6 {[%clk 0:01:45]}  axb6 {[%clk 0:01:07]} 25. Rxb6 {[%clk 0:01:45]}  c3 {[%clk 0:01:07]} 26. Rc2 {[%clk 0:01:38]}  Rhd8 {[%clk 0:01:05]} 27. a4 {[%clk 0:01:32]}  Be5 {[%clk 0:00:52]} 28. a5 {[%clk 0:01:25]}  Rc4 {[%clk 0:00:46]} 29. Rb7 {[%clk 0:01:15]}  Ra4 {[%clk 0:00:42]} 30. Bh5 {[%clk 0:00:57]}  Rxa5 {[%clk 0:00:38]} 31. Rxf7+ {[%clk 0:00:56]}  Kg8 {[%clk 0:00:38]} 32. Rf5 {[%clk 0:00:48]}  Ra1+ {[%clk 0:00:33]} 33. Kg2 {[%clk 0:00:44]}  Bg7 {[%clk 0:00:33]} 34. Rc5 {[%clk 0:00:38]}  Re1 {[%clk 0:00:25]} 35. R5xc3 {[%clk 0:00:18]}  Bxc3 {[%clk 0:00:25]} 36. Rxc3 {[%clk 0:00:19]}  Re6 {[%clk 0:00:21]} 37. Rc7 {[%clk 0:00:17]}  Rf6 {[%clk 0:00:21]} 38. Rc2 {[%clk 0:00:16]}  Rd7 {[%clk 0:00:18]} 39. Bg4 {[%clk 0:00:15]}  Re7 {[%clk 0:00:19]} 40. Bh5 {[%clk 0:00:09]}  Kg7 {[%clk 0:00:19]} 41. Bg4 {[%clk 0:00:09]}  Kg6 {[%clk 0:00:19]} 42. h3 {[%clk 0:00:07]}  h5 {[%clk 0:00:19]} 43. Be2 {[%clk 0:00:05]}  Rfe6 {[%clk 0:00:16]} 44. Bd3+ {[%clk 0:00:05]}  Kf6 {[%clk 0:00:17]} 45. g4 {[%clk 0:00:05]}  h4 {[%clk 0:00:15]} 46. Bf5 {[%clk 0:00:05]}  Rd6 {[%clk 0:00:15]} 47. Rb2 {[%clk 0:00:04]}  Rc7 {[%clk 0:00:14]} 48. Ra2 {[%clk 0:00:04]}  Rb6 {[%clk 0:00:10]} 49. Rd2 {[%clk 0:00:04]}  Re7 {[%clk 0:00:07]} 50. Ra2 {[%clk 0:00:04]}  Rb5 {[%clk 0:00:07]} 51. Rc2 {[%clk 0:00:05]}  Rbe5 {[%clk 0:00:08]} 52. Rd2 {[%clk 0:00:05]}  Re2 {[%clk 0:00:08]} 53. Rd6+ {[%clk 0:00:03]}  Ke5 {[%clk 0:00:07]} 54. Rg6 {[%clk 0:00:02]}  Kf4 {[%clk 0:00:07]} 55. Rd6 {[%clk 0:00:03]}  Ra2 {[%clk 0:00:06]} 56. Rd4+ {[%clk 0:00:03]}  Ke5 {[%clk 0:00:07]} 57. Re4+ {[%clk 0:00:04]}  Kf6 {[%clk 0:00:07]} 58. Rxe7 {[%clk 0:00:02]}  Kxe7 {[%clk 0:00:08]} 59. Kf3 {[%clk 0:00:03]}  Kf6 {[%clk 0:00:09]} 60. Kg2 {[%clk 0:00:03]}  Ke5 {[%clk 0:00:09]} 61. Kf3 {[%clk 0:00:04]}  Ra3+ {[%clk 0:00:09]} 62. Kg2 {[%clk 0:00:04]}  Kf4 {[%clk 0:00:10]} 63. Be6 {[%clk 0:00:04]}  Ke4 {[%clk 0:00:08]} 64. Bf5+ {[%clk 0:00:04]}  Kd4 {[%clk 0:00:09]} 65. Be6 {[%clk 0:00:04]}  Ra6 {[%clk 0:00:07]} 66. Bf5 {[%clk 0:00:04]}  Rd6 {[%clk 0:00:08]} 67. Bc8 {[%clk 0:00:03]}  Rf6 {[%clk 0:00:08]} 68. Bf5 {[%clk 0:00:04]}  Kc3 {[%clk 0:00:08]} 69. Kf3 {[%clk 0:00:03]}  Kd4 {[%clk 0:00:08]} 70. Kg2 {[%clk 0:00:01]}  Ra6 {[%clk 0:00:09]} 71. Kf3 {[%clk 0:00:01]}  Ra3+ {[%clk 0:00:09]} 72. Kg2 {[%clk 0:00:01]}  Kc3 {[%clk 0:00:10]} 73. Kf3 {[%clk 0:00:02]}  Kd2+ {[%clk 0:00:10]} 74. Ke4 {[%clk 0:00:01]}  Rxh3 {[%clk 0:00:09]} 75. Ke5 {[%clk 0:00:02]}  Rh2 {[%clk 0:00:10]} 76. Kf6 {[%clk 0:00:03]}  Rxf2 {[%clk 0:00:10]} 77. Kxg5 {[%clk 0:00:03]}  h3 {[%clk 0:00:10]} 0-1


[Site "https://www.chess.com"]